Cogmind - Beta 14 @@@ ROGUE MODE // 2024.11.17 @ 11:31:24 Player: Shimmyarah Result: Self-destructed Performance ------------- Evolutions (2) 1000 Regions Visited (4) 800 Robots Destroyed (45) 225 Value Destroyed (921) 921 Prototype IDs (0) 0 Alien Tech Used (0) 0 Bonus (200) 200 TOTAL SCORE: 3146 Bonus ------- Entered Garrisons 200 Cogmind --------- Core Integrity 13/550 Matter 17/300 Energy 125/125 System Corruption 2% Temperature Cool (0) Movement Walking (120) Location -8/Garrison Parts ------- > --- POWER (1) -------- Light Ion Engine > --- PROPULSION (4) --- Aluminum Leg Flight Unit > --- UTILITY (4) ------ Improved Heat Sink Visual Processing Unit > --- WEAPON (2) ------- Pulse Rifle > --- INVENTORY (5) ---- Datajack Mining Laser Peak State ------------ > --- POWER ------------ (None) > --- PROPULSION ------- Light Treads Light Treads Aluminum Leg Aluminum Leg > --- UTILITY ---------- Improved Heat Sink Improved Heat Sink Visual Processing Unit ECM Suite > --- WEAPON ----------- Pulse Rifle Missile Launcher > --- INVENTORY -------- Aluminum Leg Heavy Assault Rifle Improved Light Cannon Datajack Mining Laser [Rating: 19] Favorites ----------- Power Ion Engine Engine Ion Engine Power Core Light Nuclear Core Propulsion Light Treads Treads Light Treads Leg Aluminum Leg Wheel Wheel Flight Unit Flight Unit Utility Visual Processing Unit Device ECM Suite Storage Large Storage Unit Processor Visual Processing Unit Protection Light Armor Plating Weapon Assault Rifle Energy Gun Particle Gun Energy Cannon Light EM Pulse Cannon Ballistic Gun Assault Rifle Ballistic Cannon Assault Cannon Launcher Missile Launcher Special Weapon Mining Laser Special Melee Weapon Datajack Build | -11 -10 -9 -8 -8 ------- Run | Yrd Mat Mat Mat Gar Slots Evolved 4 | . . 2 2 . Power . | . . . . . Propulsion 2 | . . 1 1 . Utility 2 | . . 1 1 . Weapon . | . . . . . Parts Attached 79 | 5 15 23 19 17 Power 4 | . 2 1 . 1 Engine 3 | . 1 1 . 1 Core 1 | . 1 . . . Reactor . | . . . . . Propulsion 26 | 2 5 4 7 8 Treads 6 | . 3 . 3 . Leg 4 | . . . . 4 Wheel 4 | 2 2 . . . Hover . | . . . . . Flight 12 | . . 4 4 4 Utility 19 | 2 2 10 3 2 Device 15 | 2 . 9 2 2 Storage 1 | . 1 . . . Processor 1 | . . 1 . . Hackware . | . . . . . Protection 2 | . 1 . 1 . Artifact . | . . . . . Weapon 30 | 1 6 8 9 6 Energy Gun 6 | . 4 . . 2 Energy Cannon 1 | . . 1 . . Ballistic Gun 4 | 1 1 . 1 1 Ballistic Cannon 7 | . . 2 4 1 Launcher 5 | . . 1 3 1 Special Weapon 4 | . 1 1 1 1 Impact Weapon . | . . . . . Slashing Weapon . | . . . . . Piercing Weapon . | . . . . . Special Melee Weapon 3 | . . 3 . . Unidentified Prototypes . | . . . . . Parts Lost 25 | . 1 1 10 13 Power 2 | . . 1 1 . Propulsion 12 | . . . 4 8 Utility 5 | . . . 3 2 Weapon 6 | . 1 . 2 3 Highest Loss Streak 12 | . 1 1 2 12 To Critical Strikes . | . . . . . Average Slot Usage (%) 82 | . 100 93 65 71 Engine 5 | . 12 3 1 1 Core 1 | . 1 6 . . Treads 12 | . 19 4 8 14 Leg 1 | . . . . 10 Wheel 2 | . 8 . . . Flight 8 | . . 26 12 2 Device 12 | . 8 16 13 17 Storage 5 | . 14 2 . . Processor 5 | . . 8 9 9 Protection 3 | . 5 2 3 . Energy Gun 3 | . 5 7 . 6 Ballistic Gun 9 | . 21 . 3 5 Ballistic Cannon 1 | . . 1 3 1 Launcher 1 | . . . 4 1 Special Weapon 2 | . . 3 4 . Special Melee Weapon 1 | . . 5 1 . Peak Build Rating 19 | 10 12 17 16 19 Average Rating 10 | 7 8 14 11 14 On Entrance 9 | 6 8 12 14 9 Naked Turns . | . . . . . Heaviest Build 34 | 13 34 34 15 13 Greatest Support 60 | 20 40 40 60 60 Greatest Overweight (x) 9 | . 9 1 4 4 Average Overweight (x) . | . . . . . Largest Inventory Capacity 15 | 8 15 15 5 5 Average Capacity 8 | 8 14 7 5 5 Most Carried 15 | 8 15 15 5 5 Average Carried 7 | 7 11 7 4 4 Final Capacity 15 | 8 15 5 5 5 Final Carried 15 | 8 15 5 5 2 Class Distribution -------------------- 59% | Mutant 26% | Scavenger-Mutant 9% | Scavenger-Sprinter 5% | Sprinter Dominant Class ---------------- Mutant | -10/Materials Scavenger-Sprinter | -9/Materials Mutant | -8/Materials Scavenger-Mutant | -8/Garrison Resources | -11 -10 -9 -8 -8 ----------- Run | Yrd Mat Mat Mat Gar Matter Collected 1255 | 377 439 133 153 153 Remotely . | . . . . . Salvage Created 1103 | 252 491 108 157 95 Parts 105 | 27 42 8 16 12 Haulers Intercepted . | . . . . . Recyclers Shooed 2 | 1 . 1 . . Parts Field Recycled . | . . . . . Retrieved Matter . | . . . . . Parts Self-Destructed . | . . . . . Prevented . | . . . . . Kills | -11 -10 -9 -8 -8 ------- Run | Yrd Mat Mat Mat Gar Combat Hostiles Destroyed 28 | . 16 1 6 5 Melee 1 | . . . 1 . Guns 19 | . 16 . . 3 Cannons 3 | . . 1 2 . AOE 5 | . . . 3 2 Classes Destroyed 10 | 3 4 1 1 1 Worker 6 | 2 1 2 1 . Builder 2 | . 1 . 1 . Tunneler 6 | 6 . . . . Recycler 2 | 1 . 1 . . Watcher 1 | . 1 . . . Swarmer 9 | . 9 . . . Cutter 3 | . . . . 3 Grunt 11 | . 7 . 2 2 Sentry 4 | . . 1 3 . Hunter 1 | . . . 1 . Best Kill Streak 5 | 4 5 2 5 3 Combat Bots Only 5 | . 5 1 3 3 Max Kills in Single Turn 2 | 1 1 1 2 2 Gunslinging . | . . . . . Exploded 2 | . . . 2 2 Melee 1 | . . . 1 . Uniques/NPCs Destroyed . | . . . . . Combat | -11 -10 -9 -8 -8 -------- Run | Yrd Mat Mat Mat Gar Hostile Shots Fired 318 | . 76 12 116 114 Missed 100 | . 11 3 44 42 Damage Taken 2965 | . 613 133 1148 1071 Core 702 | . 138 27 240 297 Absorbed by Shields . | . . . . . Core Remaining (%) 79 | 100 44 93 . . Volleys Fired 123 | 23 56 12 18 14 Largest 2 | 2 2 2 2 2 Hottest 130 | 40 100 130 100 86 Shots Fired 222 | 46 109 17 28 22 Gun 173 | 46 107 2 2 16 Cannon 24 | . . 11 12 1 Launcher 12 | . . . 7 5 Special 13 | . 2 4 7 . Kinetic 155 | 46 82 4 14 9 Thermal 48 | . 27 6 7 8 Explosive 12 | . . . 7 5 Electromagnetic 7 | . . 7 . . Robot Hit Streak 11 | 6 11 6 6 11 Robot Miss Streak 4 | 2 3 4 2 2 Penetration Max . | . . . . . Secondary Targets 2 | . 2 . . . Max Gunslinging Chain 1 | . 1 . . . Shots Hit Robots 133 | 25 67 11 16 14 Core Hits 64 | 10 27 5 11 11 Critical Kills . | . . . . . Critical Parts Destroyed 1 | 1 . . . . Critical Strikes 4 | 1 . 1 1 1 Burn 1 | . . . . 1 Destroy 1 | 1 . . . . Blast 1 | . . . 1 . Corrupt 1 | . . 1 . . Melee Attacks 1 | . . 1 . . Impact . | . . . . . Slashing . | . . . . . Piercing . | . . . . . Sneak Attacks 1 | . . 1 . . Combat Hostiles . | . . . . . Follow-up Attacks . | . . . . . Damage Inflicted 2471 | 316 875 205 652 423 Guns 1403 | 316 872 . 26 189 Cannons 296 | . . 133 163 . Explosions 663 | . . . 429 234 Melee . | . . . . . Ramming 13 | . 3 . 10 . Kinetic 1307 | 316 674 39 189 89 Thermal 394 | . 198 72 24 100 Explosive 663 | . . . 429 234 Electromagnetic 94 | . . 94 . . Impact . | . . . . . Slashing . | . . . . . Piercing . | . . . . . Highest Corruption 2 | . . . 2 2 Average Corruption 2 | . . . 2 2 Corruption Purged . | . . . . . Corruption Blocked . | . . . . . Effects 11 | . . . 10 1 Message Errors 4 | . . . 4 . Heat Flow Errors 1 | . . . 1 . Energy Discharges 4 | . . . 3 1 Data Loss (minor) 2 | . . . 2 . Overload Shots . | . . . . . Overflow Damage 24 | . . 8 16 . Projectiles 8 | . . 8 . . Explosions 16 | . . . 16 . Melee . | . . . . . Knockbacks 1 | . . . 1 . Impact . | . . . . . Kinetic 1 | . . . 1 . Secondary . | . . . . . Self-Inflicted Damage 137 | . . . 25 112 Shots 6 | . . . 3 3 Rammed 10 | . 2 . 8 . Targets Rammed 11 | . 2 . 9 . Kicked . | . . . . . Crushed 1 | . . . 1 . Highest Temperature 309 | . 309 232 244 42 Average Temperature 77 | . 100 69 45 23 Received Heat Transfer 942 | . 159 63 432 288 Effects 4 | . 1 3 . . Interference 3 | . . 3 . . Matter Decay 1 | . 1 . . . Siege Activations . | . . . . . Robots Corrupted . | . . . . . Combat Hostiles . | . . . . . Parts Fried . | . . . . . Impact Corruptions . | . . . . . Robots Melted . | . . . . . Combat Hostiles . | . . . . . Parts Melted 2 | . 2 . . . Heat Transferred 1088 | . 592 150 50 296 Parts Sabotaged . | . . . . . Parts Stolen . | . . . . . Parts Stripped . | . . . . . Power Chain Reactions . | . . . . . Alert | -11 -10 -9 -8 -8 ------- Run | Yrd Mat Mat Mat Gar Peak Influence 446 | 45 330 228 446 228 Initial 139 | . 29 139 96 120 Average 187 | 29 154 161 277 151 Maximum Alert Level 2 | . 1 1 2 1 Low Security (%) 60 | 100 73 92 18 90 Level 1 37 | . 26 7 73 9 Level 2 2 | . . . 7 . Level 3 . | . . . . . Level 4 . | . . . . . Level 5 . | . . . . . High Security . | . . . . . Max Security . | . . . . . Squads Dispatched 2 | . 1 . 1 . Investigation . | . . . . . Extermination . | . . . . . Reinforcement 2 | . 1 . 1 . Assault . | . . . . . Garrison . | . . . . . Intercept . | . . . . . Searches Triggered . | . . . . . Construction Impeded . | . . . . . Haulers Reinforced . | . . . . . Active Scanning Responses . | . . . . . Cargo Convoy Interrupts . | . . . . . Stealth | -11 -10 -9 -8 -8 --------- Run | Yrd Mat Mat Mat Gar Distress Signals 4 | . 1 1 2 . Communications Jammed . | . . . . . Distress Signals . | . . . . . Times Spotted 71 | . 27 3 21 20 Peak Tracking Total 11 | . 7 4 4 11 Tactical Retreats 7 | . . . 7 . Traps | -11 -10 -9 -8 -8 ------- Run | Yrd Mat Mat Mat Gar Traps Triggered 1 | . . . 1 . Indirectly . | . . . . . Trap Hack Attempts . | . . . . . Triggered . | . . . . . Disarmed . | . . . . . Reprogrammed . | . . . . . Reused . | . . . . . Traps Extracted . | . . . . . Installed . | . . . . . Triggered . | . . . . . Machines | -11 -10 -9 -8 -8 ---------- Run | Yrd Mat Mat Mat Gar Machines Disabled 2 | . . . 2 . Max in Single Turn 1 | . . . 1 . Machines Repaired . | . . . . . Machines Dismantled . | . . . . . Machines Sabotaged . | . . . . . Overloaded Fab Kills . | . . . . . Hacking | -11 -10 -9 -8 -8 --------- Run | Yrd Mat Mat Mat Gar Machines Accessed 12 | . 5 4 3 . Terminals 10 | . 5 3 2 . Fabricators . | . . . . . Repair Stations . | . . . . . Recycling Units 1 | . . 1 . . Scanalyzers . | . . . . . Garrison Access 1 | . . . 1 . Total Hacks 29 | . 13 6 10 . Successful 15 | . 11 2 2 . Failed 14 | . 2 4 8 . Catastrophic 3 | . . 2 1 . Database Lockouts . | . . . . . Manual 23 | . 15 6 2 . Terminals 24 | . 13 5 6 . Fabricators . | . . . . . Repair Stations . | . . . . . Recycling Units 1 | . . 1 . . Scanalyzers . | . . . . . Garrison Access 4 | . . . 4 . Terminal Hacks 3 | . 1 1 1 . Part Schematic 1 | . . 1 . . Robot Analysis 1 | . . . 1 . Terminal Index 1 | . 1 . . . Fabricator Hacks . | . . . . . Repair Station Hacks . | . . . . . Recycling Unit Hacks . | . . . . . Scanalyzer . | . . . . . Garrison Access Hacks 1 | . . . 1 . Unlock Access 1 | . . . 1 . Unauthorized Hacks 11 | . 10 1 . . Terminals 10 | . 10 . . . Assimilate 1 | . 1 . . . Botnet 4 | . 4 . . . Skim 5 | . 5 . . . Fabricators . | . . . . . Repair Stations . | . . . . . Recycling Units 1 | . . 1 . . Reject 1 | . . 1 . . Scanalyzers . | . . . . . Garrison Access . | . . . . . Data Cores Recovered . | . . . . . Used . | . . . . . Hacking Detections 9 | . 3 3 3 . Full Trace Events 1 | . . . 1 . Feedback Events . | . . . . . Feedback Blocked . | . . . . . Robot Schematics Acquired . | . . . . . Robots Built . | . . . . . Authchips . | . . . . . Time . | . . . . . Total Robot Build Rating . | . . . . . Part Schematics Acquired 1 | . . 1 . . Parts Built . | . . . . . Authchips . | . . . . . Time . | . . . . . Total Part Build Rating . | . . . . . Parts Repaired . | . . . . . Time . | . . . . . Parts Recycled . | . . . . . Recycled Matter . | . . . . . Retrieved Matter . | . . . . . Retrieved Components . | . . . . . Parts Scanalyzed . | . . . . . Part Schematics Acquired . | . . . . . Parts Damaged . | . . . . . Bothacking | -11 -10 -9 -8 -8 ------------ Run | Yrd Mat Mat Mat Gar Used RIF Installer . | . . . . . Robots Hacked 1 | . . 1 . . Non-combat 1 | . . 1 . . Combat . | . . . . . Robot Hacks Applied 1 | . . 1 . . parse_system 1 | . . 1 . . Relay Couplers Released . | . . . . . Fabnet Peak Effective % . | . . . . . Robots Rewired . | . . . . . Allies Hacked . | . . . . . Hacks Repelled . | . . . . . Allies | -11 -10 -9 -8 -8 -------- Run | Yrd Mat Mat Mat Gar Total Allies 1 | . 1 . . . Largest Group 1 | . 1 . . . Highest-Rated Group 10 | . 10 . . . Highest-Rated Ally 10 | . 10 . . . Total Orders . | . . . . . Ally Attacks . | . . . . . Total Damage . | . . . . . Kills . | . . . . . Allies Corrupted . | . . . . . Allies Melted . | . . . . . Intel | -11 -10 -9 -8 -8 ------- Run | Yrd Mat Mat Mat Gar Robot Analysis Total 1 | . . . 1 . Derelict Logs Recovered . | . . . . . Drone Launches . | . . . . . Drone Recoveries . | . . . . . Exploration | -11 -10 -9 -8 -8 ------------- Run | Yrd Mat Mat Mat Gar Turns Passed 2449 | 235 795 280 884 255 Spaces Moved 1928 | 60 473 299 942 154 Core 44 | . 5 . 39 . Treads 377 | . 157 35 152 33 Legs 96 | . . . . 96 Wheels 371 | 60 311 . . . Hover . | . . . . . Flight 1040 | . . 264 751 25 Fastest Speed 29 | 80 80 32 29 32 Average Speed 83 | 80 122 50 68 123 Slowest Speed 500 | 80 500 160 280 215 Overloaded Moves . | . . . . . Propulsion Burnouts . | . . . . . Robots Hopped 7 | . . . 7 . Cave-ins Triggered . | . . . . . Exploration Rate (%) 29 | 4 50 21 41 31 Regions Visited 4 Branch Regions . Pre-discovered Areas 1 | . 1 . . . Known Exits Taken 2 | . 1 . 1 . Unknown Exits Taken 2 | 1 . 1 . . Scrap Searched . | . . . . . Spaces Dug 17 | . 2 . 4 11 Terrain Destroyed 95 | . 2 2 63 28 Melee . | . . . . . Projectile 10 | . 2 2 6 . AOE 85 | . . . 57 28 Terrain Rammed . | . . . . . Walls Destroyed . | . . . . . Machines Disabled . | . . . . . Actions | -11 -10 -9 -8 -8 --------- Run | Yrd Mat Mat Mat Gar Total 2486 | 201 570 404 1119 192 Wait 290 | 104 7 44 133 2 Move 1910 | 59 472 298 927 154 Hop 7 | . . . 7 . Pick Up 27 | 6 10 5 2 4 Fast Attach 21 | 1 1 5 8 6 Attach 18 | . 1 7 3 7 Detach 4 | . . 3 1 . Swap 40 | 4 13 11 8 4 Drop 34 | 4 8 18 3 1 Fire 123 | 23 56 12 18 14 Melee 1 | . . 1 . . Ram 4 | . 1 . 3 . Kick . | . . . . . Crush 7 | . 1 . 6 . Escape Stasis . | . . . . . Rewire . | . . . . . Trap . | . . . . . Miscellaneous . | . . . . . Route ------- -11/Scrapyard -10/Materials (discovered 5 exits: *Mat x3 / Min / Sub) -9/Materials (discovered 4 exits: *Mat / Min x2 / [*Sto]) -8/Materials (discovered 2 exits: [*Fac] / Gar) -8/Garrison History --------- Turn | Location | Event 19 | -11/Scrapyard | Discovered new exit (range 3) 236 | -11/Scrapyard | Entered Materials 341 | -10/Materials | Build established: Mutant 439 | -10/Materials | Learned Storage stockpile data 470 | -10/Materials | Identified exit to Subcaves 489 | -10/Materials | Identified exit to Materials 500 | -10/Materials | Identified exit to Mines 507 | -10/Materials | Learned location of 1 exit from Storage 520 | -10/Materials | Learned location of Storage (-9) 782 | -10/Materials | Discovered exit to Materials (range 15) 880 | -10/Materials | Core integrity fell below 50% 1031 | -10/Materials | Entered another Materials area 1031 | -9/Materials | Evolved 2 slots: Propulsion x1, Utility x1 1032 | -9/Materials | Identified exit to Mines 1043 | -9/Materials | Discovered new exit (range 7) 1180 | -9/Materials | Discovered new exit (range 3) 1311 | -9/Materials | Entered another Materials area 1311 | -8/Materials | Evolved 2 slots: Propulsion x1, Utility x1 1730 | -8/Materials | Discovered new exit (range 16) 2150 | -8/Materials | Identified exit to Garrison 2159 | -8/Materials | Build established: Scavenger-Mutant 2195 | -8/Materials | Entered Garrison 2231 | -8/Garrison | Triggered checkpoint 2255 | -8/Garrison | Core integrity fell below 50% 2375 | -8/Garrison | Triggered checkpoint 2412 | -8/Garrison | Core integrity fell below 20% 2449 | -8/Garrison | Triggered checkpoint 2450 | -8/Garrison | Self-destructed Last Messages --------------- 02397_ Acquired Surge Thruster. 02398_ S-10 Pest destroyed. 02402_ Acquired Lgt. Ion Engine. 02402_ S-10 Pest destroyed. 02403_ Acquired 14 matter. 02403_ The unstable cave ceiling collapses. Garrison Door activated. 02407_ Hvy. Assault Rifle destroyed. 02408_ Acquired Flight Unit. 02408_ Aluminum Leg destroyed. 02409_ Surge Thruster destroyed. 02409_ Acquired Flight Unit. 02410_ The unstable cave ceiling collapses. 02410_ Aluminum Leg destroyed. 02416_ Surge Thruster destroyed. 02416_ Flight Unit destroyed. 02420_ ECM Suite destroyed. 02439_ Imp. Light Cannon destroyed. 02449_ Beams of light sweep through the air. An alarm sounds. Map ----- +----------------------------------------------------+ | | | | | | | | | | | ?????????????????????????????????????????????????? | | ?????????????????????????????????????????????????? | | ?????????????????????????????????????????????????? | | ?????????????????????????????????????????????????? | | ?????????????????????????????????????????????????? | | ?????????????????????????????????????????????????? | | ?????????????????????????????????????????????????? | | ?????????????????????????????????????????????????? | | ?????????????????????????????????????????????????? | | ?????????????????????????????????????????????????? | | ?????????????????????????????????????????????????? | | ?????????????????????????????????????????????????? | | ?????????????????????????????????????????????????? | | ?????????????????????????????????????????????????? | | ?????????????????????????????????????????????????? | | ?????????????????????????????????????????????????? | | ????????????????????????######???????????????????? | | ??????????????????# ????#ssss#???????????????????? | | ??????????????????# ### ######??????????????? | | ??????????????????# #??????????????? | | ??????????????????# ^ @ s #??????????????? | | ??????????????????############ ###??????????????? | | ?????????????????????????????# #????????????????? | | ?????????????????????????????# #????????????????? | | ?????????????????????????????# #????????????????? | | ?????????????????????????????# #????????????????? | | ?????????????????????????????# #????????????????? | | ?????????????????????????????# #????????????????? | | ?????????????????????????????# #????????????????? | | ?????????????????????????????# #????????????????? | | ?????????????????????????????# #????????????????? | | ???????????????????# #####???# #????????????????? | | ??????????????????? ## ####?????????????? | | ?????????????????????????# #?????????????? | | ?????????????????????????# #?????????????? | | ?????????????????????????######## #?????????????? | | ????????????????????????????????# #?????????????? | | ????????????????????????????????# #?????????????? | | ????????????????????????????????# #?????????????? | | ????????????????????????????????# #?????????????? | | ????????????????????????????????# #??####???????? | | ????????????????????????????????# #? #???????? | | ???????????????????????????????## ## #######?? | | ???????????????????????????????# ? | | ???????????????????????????????# ? | +----------------------------------------------------+ Best States ------------- Heat Dissipation 59 Energy Generation 14 Energy Capacity 250 Matter Stores 300 Matter Capacity 300 Sight Range 18 Terrain Scan Range 16 Terrain Scan Density 10 ECM Strength 1 Armor Coverage 150 Evasion (%) 64 Recoil Reduction 3 Item Schematics ----------------- Imp. Hover Unit | -9/Materials | Hacked Robot Schematics ------------------ None Fabricated ------------ Nothing Alien Tech Used ----------------- None Achievements -------------- None Challenges ------------ None Game ------ Seed GuidanceConstructMinigun Manual? 0 Play Time 00:42:21 Cumulative 52.8 hours Start 2024.11.17 @ 10:43:51 End 2024.11.17 @ 11:31:24 Sessions 1 Manual Loads 0 Difficulty Rogue Special Mode None Game No. 95 Rogue 95 Adventurer 0 Explorer 0 Win Type - Total 0 Types 0/0/0/0/0/0/0/0/0 Lore% 35 Gallery% 31 Achievement% 26 Wizard Run 0 Options --------- Layout 1 ASCII 0 Keyboard 0 Movement Mouse Keybinds 0 Fullscreen 1 Font 32/SmallcapsGlow Map View 55x47 Zoom Use 2% Tactical HUD 1 Map Filters NONE Filters NONE Steam 1 RUN: f4db1b90-48fb-4375-8924-55b81ae8ce2a